bitfinex/quotes_SOLUSD_20251117
["timestamp","ask_amount","ask_price","bid_price","bid_amount"]
[1763394759978,11.82082179,137.5,137.42,0.68]
[1763394760153,7.36082179,137.49,137.45,7.36082179]
[1763394760343,12.52082179,137.5,137.42,0.68]
[1763394760544,12.52082179,137.5,137.45,7.36082179]
[1763394760787,7.36082179,137.49,137.44,7.36082179]
[1763394761084,7.36082179,137.48,137.43,7.36082179]
[1763394761247,7.36082179,137.49,137.44,7.36082179]
[1763394761571,4.46,137.49,137.46,7.36082179]
[1763394761758,18.12096,137.5,137.4,0.68]
[1763394761759,4.46,137.5,137.47,7.36082179]
[1763394761965,4.46,137.52,137.49,7.36082179]
[1763394762277,17.14964948,137.5,137.44,7.36082179]
[1763394762438,7.36082179,137.48,137.43,7.36082179]
[1763394762759,11.82082179,137.48,137.44,7.36082179]
[1763394762954,7.36082179,137.47,137.4,0.68]
[1763394763158,7.36082179,137.44,137.4,7.36082179]
[1763394763468,7.36082179,137.44,137.36,11.82082179]
[1763394763469,11.82082179,137.44,137.39,7.36082179]
[1763394763642,7.36082179,137.42,137.37,7.36082179]
[1763394763844,7.36082179,137.41,137.36,8.04082179]
[1763394764074,4.46,137.41,137.38,7.36082179]
[1763394764875,4.46,137.42,137.39,7.36082179]
[1763394765440,0.7,137.41,137.34,0.68]
[1763394765674,8.06082179,137.41,137.36,7.36082179]
[1763394765873,7.36082179,137.4,137.35,7.36082179]
[1763394766277,7.36082179,137.4,137.35,8.04082179]
[1763394766524,23.28096,137.42,137.32,0.68]
[1763394766525,8.06082179,137.39,137.32,0.68]
[1763394766645,8.06082179,137.39,137.34,7.36082179]
[1763394767047,7.36082179,137.39,137.34,8.04082179]
[1763394767573,8.06082179,137.39,137.34,8.04082179]
[1763394767771,8.06082179,137.39,137.34,7.36082179]
[1763394768070,7.36082179,137.35,137.3,7.36082179]
[1763394768276,7.36082179,137.33,137.29,7.36082179]
[1763394768445,4.46,137.34,137.3,7.36082179]
[1763394768847,0.7,137.37,137.31,13.51865875]
[1763394769066,4.46,137.36,137.33,12.83865875]
[1763394769774,4.46,137.37,137.34,12.83865875]
[1763394770485,122.72096,137.38,137.34,12.83865875]
[1763394770772,140.01961875,137.38,137.33,12.83865875]
[1763394770976,109.06,137.38,137.35,12.83865875]
[1763394771354,109.06,137.38,137.34,12.83865875]
[1763394772063,122.59865875,137.38,137.34,12.83865875]
[1763394772559,13.53865875,137.37,137.31,0.68]
[1763394772779,13.53865875,137.37,137.32,12.83865875]
[1763394773154,13.53865875,137.37,137.31,0.68]
[1763394773350,13.53865875,137.37,137.32,12.83865875]
[1763394773554,12.83865875,137.37,137.32,12.83865875]
[1763394773775,13.53865875,137.36,137.31,12.83865875]
[1763394773985,0.7,137.36,137.32,12.83865875]
[1763394774158,12.83865875,137.37,137.32,12.83865875]
[1763394774363,13.53865875,137.36,137.31,12.83865875]
[1763394774685,4.46,137.35,137.32,12.83865875]
[1763394775248,104.6,137.34,137.32,12.83865875]
[1763394775479,2.0,137.45,137.3,0.68]
[1763394775480,12.83865875,137.4,137.33,13.51865875]
[1763394775675,12.83865875,137.4,137.36,12.83865875]
[1763394775676,4.46,137.39,137.36,12.83865875]
[1763394775881,4.46,137.39,137.35,12.83865875]
[1763394776267,4.46,137.39,137.36,12.83865875]
[1763394776460,4.46,137.39,137.35,12.83865875]
[1763394776862,5.16,137.39,137.35,12.83865875]
[1763394777186,0.7,137.38,137.35,12.83865875]
[1763394777567,17.29865875,137.39,137.35,12.83865875]
[1763394777765,0.7,137.44,137.37,12.83865875]
[1763394777957,35.41961875,137.43,137.38,12.83865875]
[1763394778461,0.7,137.42,137.38,12.83865875]
[1763394778656,18.12096,137.43,137.39,12.83865875]
[1763394778880,4.46,137.42,137.35,0.68]
[1763394779185,4.46,137.42,137.39,12.83865875]
[1763394779480,0.7,137.47,137.41,12.83865875]
[1763394779780,12.83865875,137.45,137.35,0.68]
[1763394779987,4.46,137.45,137.42,12.83865875]
[1763394780489,0.2,137.55,137.39,18.12096]
[1763394780781,0.7,137.49,137.44,12.83865875]
[1763394780969,0.9,137.55,137.47,12.83865875]
[1763394781177,0.2,137.55,137.52,12.83865875]
[1763394781359,0.9,137.55,137.48,0.68]
[1763394781562,0.9,137.55,137.46,0.72748435]
[1763394781563,0.7,137.54,137.46,0.68]
[1763394781769,17.29865875,137.53,137.46,0.68]
[1763394781979,17.29865875,137.53,137.47,12.83865875]
[1763394782194,4.46,137.54,137.52,12.83865875]
[1763394782493,4.46,137.54,137.5,12.83865875]
[1763394782697,30.95961875,137.51,137.4,0.68]
[1763394783004,12.83865875,137.47,137.41,12.83865875]
[1763394783297,17.29865875,137.46,137.4,12.83865875]
[1763394783474,18.12096,137.45,137.39,12.83865875]
[1763394783680,12.83865875,137.44,137.38,13.51865875]
[1763394784188,18.82096,137.45,137.38,13.51865875]
[1763394784396,31.65961875,137.45,137.39,12.83865875]
[1763394784695,4.46,137.47,137.39,0.68]
[1763394784902,18.12096,137.52,137.46,12.83865875]
[1763394784903,4.46,137.52,137.46,12.83865875]
[1763394785076,0.2,137.55,137.4,13.51865875]
[1763394785077,0.2,137.55,137.5,12.83865875]
[1763394785314,0.2,137.55,137.45,18.12096]
[1763394785315,0.2,137.55,137.53,12.83865875]
[1763394785480,0.2,137.55,137.54,12.83865875]
[1763394785679,0.2,137.55,137.49,18.12096]
[1763394785905,0.2,137.55,137.54,12.83865875]
[1763394786397,0.2,137.55,137.54,13.51865875]
[1763394787919,0.2,137.55,137.54,23.30748644]
[1763394788192,0.2,137.58,137.57,27.90978769]
[1763394788374,0.2,137.58,137.57,40.74844644]
[1763394788580,0.2,137.58,137.57,41.42844644]
[1763394789093,0.2,137.58,137.57,12.83865875]
[1763394789299,0.2,137.58,137.57,13.51865875]
[1763394790271,0.2,137.58,137.57,23.30748644]
[1763394790504,0.2,137.59,137.57,27.76748644]
[1763394790700,0.2,137.64,137.62,9.78882769]
[1763394790998,0.69,137.74,137.66,18.12096]
[1763394791178,0.69,137.74,137.67,12.83865875]
[1763394791382,0.69,137.74,137.67,23.30748644]
[1763394791688,0.69,137.79,137.7,18.12096]
[1763394791878,0.69,137.79,137.76,12.83865875]
[1763394792082,0.69,137.79,137.71,0.68]
[1763394792290,13.52865875,137.79,137.67,5.14]
[1763394792600,12.83865875,137.73,137.62,0.68]
[1763394792774,9.78882769,137.73,137.68,12.83865875]
[1763394792975,0.89,137.72,137.68,12.83865875]
[1763394793394,0.69,137.71,137.68,12.83865875]
[1763394793592,0.69,137.71,137.64,0.68]
[1763394793788,0.69,137.71,137.61,0.68]
[1763394793789,22.62748644,137.7,137.61,0.68]
[1763394794003,12.83865875,137.68,137.59,4.46]
[1763394794202,0.69,137.67,137.64,12.83865875]
[1763394794370,10.47882769,137.71,137.66,12.83865875]
[1763394794784,0.69,137.7,137.66,12.89073037]
[1763394795206,13.58073037,137.7,137.65,12.89073037]
[1763394795500,12.89073037,137.69,137.64,12.89073037]
[1763394795806,0.69,137.7,137.61,0.68]
[1763394796014,0.69,137.69,137.66,12.89073037]
[1763394796386,0.69,137.69,137.61,0.68]
[1763394796704,31.01169037,137.65,137.6,12.89073037]
[1763394797007,31.01169037,137.65,137.45,36.7898559]
[1763394797008,12.89073037,137.62,137.57,12.89073037]
[1763394797305,13.58073037,137.64,137.59,12.89073037]
[1763394797605,5.15,137.64,137.6,12.89073037]
[1763394797794,0.69,137.63,137.56,18.12096]
[1763394797990,0.69,137.63,137.59,12.89073037]
[1763394798571,13.58073037,137.63,137.58,12.89073037]
[1763394798792,0.69,137.63,137.59,12.89073037]
[1763394799484,31.70169037,137.66,137.61,12.89073037]
[1763394799685,31.70169037,137.66,137.62,12.89073037]
[1763394799686,0.69,137.66,137.62,12.89073037]
[1763394800006,0.69,137.66,137.63,12.89073037]
[1763394800173,0.89,137.72,137.65,12.89073037]
[1763394800378,0.89,137.72,137.7,12.89073037]
[1763394800681,0.89,137.72,137.65,0.7]
[1763394800682,0.2,137.72,137.71,12.89073037]
[1763394801082,0.89,137.72,137.63,0.7]
[1763394801292,9.78882769,137.71,137.63,0.7]
[1763394801505,23.36955806,137.71,137.66,12.89073037]
[1763394801680,0.69,137.7,137.66,12.89073037]
[1763394801876,0.69,137.7,137.67,12.89073037]
[1763394802606,0.2,137.72,137.69,12.89073037]
[1763394802777,0.89,137.72,137.69,12.89073037]
[1763394803305,0.69,137.71,137.69,12.89073037]
[1763394803494,10.47882769,137.71,137.64,18.12096]
[1763394803680,10.47882769,137.71,137.67,12.89073037]
[1763394803883,0.69,137.7,137.67,12.89073037]
[1763394804105,0.69,137.7,137.66,12.89073037]
[1763394804302,0.69,137.7,137.65,12.89073037]
[1763394804509,0.69,137.7,137.66,12.89073037]
[1763394805033,32.36978769,137.71,137.67,12.89073037]
[1763394805332,13.78073037,137.72,137.69,12.89073037]
[1763394805333,4.66,137.72,137.69,12.89073037]
[1763394805525,5.35,137.72,137.68,12.89073037]
[1763394806131,0.2,137.72,137.7,12.89073037]
[1763394807211,0.89,137.72,137.7,12.89073037]
[1763394807536,0.89,137.72,137.68,12.89073037]
[1763394807537,9.78882769,137.71,137.68,12.89073037]
[1763394807713,10.47882769,137.71,137.67,12.89073037]
[1763394807925,0.69,137.71,137.68,12.89073037]
[1763394808243,0.69,137.7,137.67,12.89073037]
[1763394808409,0.69,137.7,137.66,12.89073037]
[1763394809217,0.69,137.7,137.65,12.89073037]
[1763394809522,0.69,137.7,137.63,18.12096]
[1763394809707,0.69,137.7,137.6,4.46]
[1763394809910,9.98882769,137.72,137.68,12.89073037]
[1763394810218,9.98882769,137.72,137.63,18.12096]
[1763394810219,0.89,137.72,137.69,12.89073037]
[1763394810410,0.2,137.72,137.71,12.89073037]
[1763394811215,0.89,137.72,137.68,12.89073037]
[1763394811542,0.89,137.72,137.61,9.78882769]
[1763394811543,40.80051806,137.69,137.59,4.46]
[1763394811742,27.90978769,137.65,137.59,12.89073037]
[1763394811946,12.89073037,137.63,137.58,12.89073037]
[1763394812149,22.67955806,137.62,137.57,12.89073037]
[1763394812316,23.36955806,137.62,137.57,12.89073037]
[1763394812518,0.69,137.61,137.58,12.89073037]
[1763394812715,0.69,137.61,137.57,12.89073037]
[1763394813129,31.70169037,137.61,137.56,12.89073037]
[1763394813520,0.69,137.6,137.58,12.89073037]
[1763394813725,0.69,137.63,137.59,12.89073037]
[1763394814050,5.15,137.66,137.58,18.12096]
[1763394814213,0.69,137.66,137.63,12.89073037]
[1763394814848,0.69,137.66,137.62,12.77946277]
[1763394815240,32.36978769,137.68,137.64,12.77946277]
[1763394815553,5.15,137.69,137.66,12.77946277]
[1763394815734,0.2,137.72,137.68,12.77946277]
[1763394815941,0.2,137.72,137.68,22.58096]
[1763394816249,0.2,137.72,137.68,4.46]
[1763394816455,0.2,137.72,137.71,12.77946277]
[1763394817750,9.78882769,137.71,137.64,18.12096]
[1763394817952,9.78882769,137.71,137.67,12.77946277]
[1763394818155,10.47882769,137.71,137.68,12.77946277]
[1763394818538,0.69,137.7,137.68,12.77946277]
[1763394819051,0.2,137.72,137.69,12.77946277]
[1763394819226,0.2,137.72,137.71,12.77946277]
[1763394819648,0.2,137.72,137.71,13.47946277]
[1763394819848,0.2,137.72,137.71,12.77946277]
[1763394820430,0.2,137.72,137.71,13.47946277]
[1763394820626,0.2,137.72,137.71,12.77946277]
[1763394821029,0.89,137.72,137.7,12.77946277]
[1763394821358,0.69,137.71,137.65,4.46]
[1763394821666,0.69,137.71,137.69,12.77946277]
[1763394821839,0.69,137.71,137.65,4.46]
[1763394821840,0.69,137.71,137.68,12.77946277]
[1763394822040,0.2,137.72,137.69,12.77946277]
[1763394822226,0.2,137.72,137.71,12.77946277]
[1763394824854,0.89,137.72,137.67,18.12096]
[1763394825154,0.89,137.72,137.71,12.77946277]
[1763394825155,0.2,137.72,137.71,12.77946277]
[1763394827149,0.89,137.72,137.64,14.22882769]
[1763394827352,0.89,137.72,137.68,12.77946277]
[1763394827555,0.89,137.72,137.69,12.77946277]
[1763394827957,0.2,137.72,137.69,12.77946277]
[1763394828148,0.2,137.72,137.7,12.77946277]
[1763394828469,0.2,137.72,137.71,12.77946277]
[1763394828855,0.89,137.72,137.71,7.32977007]
[1763394829165,0.2,137.72,137.71,7.32977007]
[1763394830084,0.69,137.81,137.71,26.15073007]
[1763394830243,0.69,137.83,137.79,7.32977007]
[1763394830443,0.69,137.85,137.82,7.32977007]
[1763394830646,8.01977007,137.85,137.78,18.12096]
[1763394830866,8.01977007,137.85,137.76,4.44]
[1763394830867,7.32977007,137.82,137.76,4.44]
[1763394831063,18.12096,137.84,137.73,4.44]
[1763394831064,17.11859776,137.81,137.73,4.44]
[1763394831366,18.81096,137.84,137.77,7.32977007]
[1763394831367,7.32977007,137.82,137.77,7.32977007]
[1763394831665,7.32977007,137.82,137.73,4.44]
[1763394831666,9.78882769,137.82,137.79,7.32977007]
[1763394831867,0.69,137.81,137.78,7.32977007]
[1763394832358,18.12096,137.8,137.75,7.32977007]
[1763394832548,0.69,137.8,137.77,7.32977007]
[1763394832944,0.69,137.8,137.76,7.32977007]
[1763394833152,17.11859776,137.79,137.73,7.32977007]
[1763394833369,17.11859776,137.79,137.68,8.02977007]
[1763394833370,9.78882769,137.77,137.69,4.44]
[1763394833573,9.78882769,137.77,137.73,7.32977007]
[1763394833803,0.69,137.76,137.73,7.32977007]
[1763394834269,0.69,137.76,137.72,7.32977007]
[1763394834649,0.69,137.76,137.69,22.56096]
[1763394834870,0.19,137.76,137.72,7.32977007]
[1763394836262,0.19,137.76,137.71,7.32977007]
[1763394836645,0.19,137.76,137.72,7.32977007]
[1763394837252,0.19,137.76,137.71,7.32977007]
[1763394837548,0.19,137.76,137.69,4.44]
[1763394837892,0.19,137.76,137.71,7.32977007]
[1763394838673,0.19,137.76,137.72,7.32977007]
[1763394838876,0.19,137.76,137.69,4.44]
[1763394839369,0.19,137.76,137.72,7.32977007]
[1763394840167,0.19,137.76,137.71,7.32977007]
[1763394840858,0.19,137.76,137.68,0.7]
[1763394841071,0.19,137.76,137.71,7.32977007]
[1763394841257,9.78882769,137.71,137.6,0.7]
[1763394841463,4.44,137.71,137.66,7.32977007]
[1763394841706,4.44,137.71,137.61,0.7]
[1763394841707,5.13,137.71,137.67,7.32977007]
[1763394842074,0.69,137.7,137.67,7.32977007]
[1763394842474,0.69,137.7,137.63,18.82096]
[1763394842696,4.44,137.71,137.67,7.32977007]
[1763394842908,18.12096,137.72,137.69,7.32977007]
[1763394843199,18.12096,137.72,137.7,7.32977007]
[1763394843568,10.47882769,137.71,137.68,7.32977007]
[1763394843769,10.47882769,137.71,137.67,7.32977007]
[1763394844008,10.47882769,137.7,137.6,4.44]
[1763394844211,17.11859776,137.67,137.61,7.32977007]
[1763394844382,9.78882769,137.65,137.61,7.32977007]
[1763394844784,10.47882769,137.65,137.61,7.32977007]
[1763394845001,0.69,137.64,137.61,7.32977007]
[1763394845199,0.69,137.64,137.6,7.32977007]
[1763394845400,7.32977007,137.63,137.57,0.1]
[1763394845707,17.80859776,137.62,137.57,7.42977007]
[1763394845912,5.13,137.64,137.6,7.32977007]
[1763394846199,9.78882769,137.68,137.63,7.32977007]
[1763394846404,9.78882769,137.68,137.6,7.32977007]
[1763394846405,17.11859776,137.68,137.62,7.32977007]
[1763394846584,0.68,137.67,137.62,7.32977007]
[1763394846786,9.78882769,137.69,137.64,7.32977007]
[1763394846985,10.46882769,137.69,137.64,7.32977007]
[1763394847186,0.68,137.68,137.64,7.32977007]
[1763394847377,8.00977007,137.68,137.62,7.32977007]
[1763394847708,0.68,137.68,137.64,7.32977007]
[1763394848022,0.68,137.67,137.64,7.32977007]
[1763394848186,0.68,137.67,137.59,18.79096]
[1763394848387,0.68,137.67,137.63,7.32977007]
[1763394848712,0.68,137.67,137.64,7.32977007]
[1763394849003,8.00977007,137.69,137.64,7.32977007]
[1763394849207,7.32977007,137.69,137.64,7.32977007]
[1763394849512,0.68,137.68,137.64,7.32977007]
[1763394850594,0.68,137.68,137.65,7.32977007]
[1763394851010,0.68,137.68,137.64,7.32977007]
[1763394851515,104.6,137.67,137.64,7.32977007]
[1763394851888,0.68,137.66,137.59,18.79096]
[1763394852204,104.6,137.65,137.62,7.32977007]
[1763394852385,104.6,137.65,137.63,7.32977007]
[1763394852591,104.6,137.65,137.64,7.32977007]
[1763394852792,0.68,137.68,137.64,7.32977007]
[1763394853187,7.32977007,137.65,137.57,0.1]
[1763394853392,4.44,137.67,137.61,7.32977007]
[1763394853719,0.68,137.66,137.61,7.32977007]
[1763394854095,314.72528736,137.74,137.59,0.67]
[1763394854096,9.78882769,137.71,137.65,7.32977007]
[1763394854298,0.68,137.72,137.65,0.67]
[1763394854499,17.11859776,137.71,137.62,0.67]
[1763394854691,7.32977007,137.67,137.59,18.12096]
[1763394854898,11.76977007,137.67,137.62,7.32977007]
[1763394855096,4.44,137.67,137.63,7.32977007]
[1763394855291,4.44,137.67,137.64,7.32977007]
[1763394855514,5.12,137.67,137.63,7.32977007]
[1763394855709,5.12,137.67,137.6,0.67]
[1763394855915,5.12,137.67,137.63,7.32977007]
[1763394856414,0.68,137.66,137.6,0.67]
[1763394856723,0.68,137.66,137.62,7.32977007]
[1763394858536,0.68,137.66,137.59,18.79096]
[1763394858711,0.68,137.66,137.62,7.32977007]
[1763394859106,8.00977007,137.66,137.6,7.32977007]
[1763394859316,25.45073007,137.63,137.57,0.1]
[1763394859512,127.16096,137.62,137.57,0.1]
[1763394859712,127.16096,137.62,137.57,7.42977007]
[1763394859912,0.72,137.61,137.57,7.42977007]
[1763394860817,0.72,137.61,137.58,7.32977007]
[1763394861328,127.16096,137.62,137.58,7.32977007]
[1763394861329,109.04,137.62,137.58,7.32977007]
[1763394861526,109.76,137.62,137.59,7.32977007]
[1763394861700,104.6,137.62,137.61,7.32977007]
[1763394861904,0.72,137.66,137.61,7.32977007]
[1763394862215,0.72,137.66,137.63,7.32977007]
[1763394862619,10.50882769,137.68,137.64,7.32977007]
[1763394862823,17.83859776,137.68,137.63,7.32977007]
[1763394863024,0.72,137.67,137.63,7.32977007]
[1763394863328,0.72,137.67,137.64,7.32977007]
[1763394863699,23.28096,137.69,137.66,7.32977007]
[1763394864105,5.16,137.69,137.66,7.32977007]
[1763394864519,4.44,137.69,137.66,7.32977007]
[1763394864711,5.16,137.69,137.66,7.32977007]
[1763394864910,0.72,137.68,137.65,7.32977007]
[1763394865315,0.72,137.68,137.63,7.32977007]
[1763394865316,18.12096,137.67,137.63,7.32977007]
[1763394865511,18.12096,137.67,137.6,18.12096]
[1763394865698,18.84096,137.67,137.63,7.32977007]
[1763394866107,0.72,137.66,137.62,7.32977007]
[1763394866335,0.72,137.66,137.56,9.78882769]
[1763394866336,7.32977007,137.64,137.59,7.32977007]
[1763394866712,0.72,137.63,137.59,7.32977007]
[1763394868017,8.04977007,137.63,137.57,0.1]
[1763394868241,8.04977007,137.63,137.58,7.32977007]
[1763394868746,105.32,137.62,137.58,7.32977007]
[1763394868918,105.32,137.62,137.59,7.32977007]
[1763394870245,105.32,137.62,137.57,0.76]
[1763394870414,104.6,137.62,137.59,7.32977007]
[1763394870620,105.32,137.62,137.58,7.32977007]
[1763394870933,0.72,137.61,137.59,7.32977007]
[1763394871120,104.6,137.6,137.57,7.42977007]
[1763394871323,104.6,137.59,137.57,0.1]
[1763394871749,0.72,137.58,137.57,0.1]
[1763394872143,35.95955776,137.58,137.57,0.1]
[1763394873633,28.62978769,137.58,137.57,0.1]
[1763394873834,18.12096,137.58,137.57,0.1]
[1763394874044,18.84096,137.58,137.57,0.1]
[1763394874429,26.17073007,137.58,137.57,0.1]
[1763394874637,7.32977007,137.6,137.57,0.1]
[1763394874957,0.72,137.6,137.57,7.42977007]
[1763394875141,4.44,137.61,137.57,7.42977007]
[1763394875342,0.72,137.6,137.57,7.42977007]
[1763394875826,7.32977007,137.68,137.59,7.32977007]
[1763394876028,8.04977007,137.65,137.6,7.32977007]
[1763394876229,26.17073007,137.65,137.6,7.32977007]
[1763394876458,0.69,137.64,137.61,7.32977007]
[1763394876976,5.15,137.67,137.63,7.32977007]
[1763394877262,4.46,137.67,137.6,7.32977007]
[1763394877474,4.46,137.67,137.65,7.32977007]
[1763394877634,4.46,137.67,137.64,7.32977007]
[1763394877832,4.46,137.67,137.57,9.88882769]
[1763394878066,0.69,137.66,137.62,7.32977007]
[1763394878256,8.01977007,137.66,137.61,7.32977007]
[1763394878727,0.69,137.65,137.61,7.32977007]
[1763394879130,25.45073007,137.64,137.6,7.32977007]
[1763394879352,18.12096,137.64,137.6,7.32977007]
[1763394879556,0.69,137.63,137.57,0.77]
[1763394879766,8.01977007,137.63,137.58,7.32977007]
[1763394880057,26.14073007,137.64,137.6,7.32977007]
[1763394880233,0.69,137.63,137.6,7.32977007]
[1763394880861,12.45977007,137.63,137.58,7.32977007]
[1763394881361,18.12096,137.6,137.57,7.42977007]
[1763394881546,104.6,137.59,137.57,7.42977007]
[1763394882135,104.6,137.59,137.58,7.32977007]
[1763394882336,4.44,137.63,137.58,7.99977007]
[1763394882654,18.81096,137.63,137.61,7.32977007]
[1763394882867,18.81096,137.63,137.62,7.32977007]
[1763394883031,0.69,137.62,137.6,7.32977007]
[1763394883459,18.12096,137.63,137.61,7.32977007]
[1763394883634,18.12096,137.64,137.62,7.32977007]
[1763394883968,18.12096,137.64,137.57,0.1]
[1763394883969,35.38877196,137.63,137.47,0.67]
[1763394884132,18.12096,137.56,137.51,7.32977007]
[1763394884333,4.44,137.55,137.48,0.67]
[1763394884637,22.56096,137.56,137.48,0.67]
[1763394884859,22.56096,137.56,137.54,7.32977007]
[1763394885161,5.13,137.58,137.55,7.32977007]
[1763394885363,5.13,137.58,137.5,18.12096]
[1763394885535,5.13,137.58,137.55,7.32977007]
[1763394886268,0.69,137.57,137.55,7.32977007]
[1763394886476,5.13,137.58,137.55,7.32977007]
[1763394886768,5.13,137.58,137.56,7.32977007]
[1763394886952,4.44,137.58,137.56,7.32977007]
[1763394887140,5.13,137.58,137.53,0.67]
[1763394887469,5.13,137.58,137.55,7.32977007]
[1763394888232,0.69,137.57,137.5,0.67]
[1763394888481,0.69,137.57,137.48,27.90978769]
[1763394888482,9.78882769,137.56,137.47,4.44]
[1763394888762,18.12096,137.53,137.47,0.67]
[1763394888950,4.44,137.52,137.5,7.32977007]
[1763394889133,109.04,137.52,137.5,7.32977007]
[1763394889334,7.32977007,137.57,137.51,7.99977007]
[1763394889565,104.6,137.59,137.45,9.78882769]
[1763394889566,109.04,137.59,137.56,7.32977007]
[1763394889773,104.6,137.59,137.58,7.32977007]
[1763394890066,18.12096,137.59,137.58,7.32977007]
[1763394890442,18.12096,137.59,137.57,7.32977007]
[1763394890836,18.12096,137.59,137.57,12.78994753]
[1763394891138,5.13,137.61,137.58,12.78994753]
[1763394891358,0.69,137.6,137.57,12.78994753]
[1763394891956,18.12096,137.58,137.56,12.78994753]
[1763394892143,0.69,137.6,137.55,12.78994753]
[1763394892144,18.12096,137.57,137.55,12.78994753]
[1763394892344,22.56096,137.57,137.51,0.67]
[1763394892544,0.69,137.56,137.52,12.78994753]
[1763394892763,10.47882769,137.56,137.52,12.78994753]
[1763394892966,18.12096,137.55,137.54,12.78994753]
[1763394893272,18.12096,137.55,137.53,12.78994753]
[1763394893471,0.69,137.63,137.54,13.45994753]
[1763394893762,18.12096,137.6,137.54,0.67]
[1763394893963,4.44,137.62,137.59,12.78994753]
[1763394894285,23.25096,137.62,137.58,12.78994753]
[1763394894576,5.13,137.62,137.55,0.67]
[1763394894779,10.47882769,137.61,137.57,12.78994753]
[1763394894951,18.12096,137.54,137.4,12.88994753]
[1763394895289,12.78994753,137.5,137.43,0.77]
[1763394895449,4.44,137.49,137.43,0.77]
[1763394895761,4.44,137.49,137.47,12.78994753]
[1763394896172,4.44,137.49,137.48,12.78994753]
[1763394896472,18.12096,137.52,137.48,13.45994753]
[1763394896647,18.12096,137.52,137.5,12.78994753]
[1763394898078,4.46,137.54,137.51,12.78994753]
[1763394898378,9.78882769,137.57,137.53,12.78994753]
[1763394898578,22.58096,137.56,137.55,12.78994753]
[1763394899084,4.46,137.56,137.52,0.67]
[1763394899385,4.46,137.56,137.55,12.78994753]
[1763394899386,22.58096,137.56,137.55,12.78994753]
[1763394900245,4.46,137.56,137.55,12.78994753]
[1763394900464,4.46,137.56,137.52,0.67]
[1763394900465,5.15,137.56,137.49,0.67]
[1763394900668,36.06090753,137.56,137.51,12.78994753]
[1763394900883,22.58096,137.56,137.51,12.78994753]
[1763394901203,105.29,137.64,137.55,12.78994753]
[1763394901346,0.69,137.63,137.6,12.78994753]
[1763394901552,0.69,137.63,137.59,12.78994753]
[1763394901758,18.81096,137.63,137.59,12.78994753]
[1763394902093,4.46,137.64,137.61,12.78994753]
[1763394902261,4.46,137.64,137.6,12.78994753]
[1763394902262,23.27096,137.64,137.6,12.78994753]
[1763394902664,0.69,137.63,137.59,12.78994753]
[1763394902866,0.69,137.63,137.6,12.78994753]
[1763394903290,0.69,137.63,137.59,12.78994753]
[1763394903755,18.12096,137.62,137.61,12.78994753]
[1763394904085,4.46,137.64,137.61,12.78994753]
[1763394904289,4.46,137.64,137.6,0.67]
[1763394904290,4.44,137.67,137.62,0.67]
[1763394904465,12.78994753,137.65,137.57,0.67]
[1763394904674,18.12096,137.63,137.62,12.78994753]
[1763394905277,18.12096,137.63,137.56,0.67]
[1763394905278,5.13,137.63,137.56,0.67]
[1763394905497,5.13,137.63,137.52,5.11]
[1763394905498,30.91090753,137.61,137.52,5.11]
[1763394905785,18.12096,137.61,137.57,12.78994753]
[1763394905975,18.12096,137.61,137.55,4.483851]
[1763394905976,18.81096,137.61,137.58,12.78994753]
[1763394906172,18.81096,137.61,137.57,12.78994753]
[1763394906483,30.91090753,137.58,137.55,4.483851]
[1763394906794,0.69,137.6,137.55,4.483851]
[1763394906795,40.69973522,137.56,137.55,3.663851]
[1763394906972,40.69973522,137.56,137.55,3.063851]
[1763394907364,12.78994753,137.57,137.55,3.063851]
[1763394907560,22.56096,137.56,137.55,3.063851]
[1763394907790,18.12096,137.56,137.55,15.85379853]